bitfinex/quotes_SOLUSD_20250809
["timestamp","ask_amount","ask_price","bid_price","bid_amount"]
[1754768541957,0.69,182.03,181.97,41.24]
[1754768542259,0.69,182.03,181.98,4.048913]
[1754768542442,0.69,182.03,182.02,9.30200039]
[1754768542641,0.69,182.05,182.02,9.30200039]
[1754768542842,0.69,182.05,182.0,41.24]
[1754768543040,0.69,182.04,182.01,4.04631675]
[1754768543336,0.69,182.04,182.03,9.30200039]
[1754768543731,0.69,182.04,181.95,26.0]
[1754768543932,0.69,182.04,181.99,9.30200039]
[1754768544132,0.69,182.04,182.01,9.30200039]
[1754768544333,0.69,182.04,182.02,9.30200039]
[1754768544543,0.69,182.04,182.03,9.30200039]
[1754768544850,0.69,182.04,182.02,9.30200039]
[1754768545664,0.69,182.03,181.99,41.24]
[1754768545836,0.69,182.03,182.0,4.04092434]
[1754768546037,0.69,182.03,182.01,4.04109029]
[1754768546248,26.03,182.06,182.02,4.04090147]
[1754768546449,26.03,182.06,181.98,0.66]
[1754768546773,0.69,182.05,182.02,9.30200039]
[1754768546950,0.69,182.04,181.98,0.66]
[1754768547270,0.69,182.04,181.99,4.03910192]
[1754768547438,0.69,182.04,182.01,9.30200039]
[1754768547635,0.69,182.03,181.97,7.69501716]
[1754768547870,0.69,182.03,181.98,4.03802615]
[1754768548049,0.69,182.03,181.97,7.69501716]
[1754768548050,0.69,182.02,182.0,9.30200039]
[1754768548239,0.69,182.02,181.97,5.49534216]
[1754768548436,0.69,182.02,182.0,9.30200039]
[1754768548936,9.30200039,182.04,181.96,13.19071894]
[1754768549141,0.72,182.01,181.98,9.30200039]
[1754768549365,0.72,182.01,181.99,13.33959267]
[1754768549565,0.72,182.03,182.0,13.33959267]
[1754768549765,0.72,182.05,182.02,9.30200039]
[1754768550068,0.72,182.05,182.03,13.35563011]
[1754768550271,0.72,182.05,182.0,0.66]
[1754768550438,0.72,182.04,182.01,4.05395568]
[1754768550637,9.30200039,182.02,181.95,16.497566]
[1754768550853,26.0,182.05,181.96,4.05397354]
[1754768550854,9.30200039,182.0,181.96,4.05397354]
[1754768551048,10.02200039,182.01,181.97,4.05397354]
[1754768551275,0.72,182.01,181.98,4.05397354]
[1754768551471,0.72,182.01,181.99,4.05397354]
[1754768551777,9.30200039,182.01,181.94,6.15630048]
[1754768551950,9.30200039,182.01,181.96,9.30200039]
[1754768552156,9.30200039,182.01,181.97,4.05416757]
[1754768552359,9.30200039,181.99,181.98,4.05416757]
[1754768552673,0.72,181.99,181.93,5.49659233]
[1754768552871,0.72,181.99,181.95,9.30200039]
[1754768553076,0.72,181.99,181.96,4.05449985]
[1754768553370,0.72,181.99,181.97,4.05449985]
[1754768553774,9.30200039,182.0,181.93,5.49659233]
[1754768553980,9.30200039,182.0,181.92,0.66]
[1754768553981,0.72,181.98,181.94,13.35743523]
[1754768554156,0.72,181.97,181.95,4.05543484]
[1754768554358,0.72,181.97,181.96,4.05543484]
[1754768554571,0.72,181.97,181.95,4.05543484]
[1754768554762,0.72,181.97,181.96,4.05543484]
[1754768555160,0.72,181.97,181.96,4.05621514]
[1754768555456,0.72,181.97,181.95,4.05621514]
[1754768555660,0.72,181.97,181.96,4.05621514]
[1754768555862,9.30200039,182.0,181.95,4.05621514]
[1754768556061,0.72,181.99,181.94,9.30200039]
[1754768556274,9.30200039,181.97,181.95,4.05677854]
[1754768556477,5.49457776,182.0,181.92,9.30200039]
[1754768556788,0.72,181.96,181.93,13.35994363]
[1754768556950,0.72,181.96,181.94,4.05794324]
[1754768557297,0.72,181.96,181.95,4.05794324]
[1754768557584,0.72,181.96,181.93,4.05794324]
[1754768557762,0.72,181.95,181.94,4.05794324]
[1754768557957,10.02200039,181.95,181.89,130.92]
[1754768558177,0.72,181.95,181.9,4.05958706]
[1754768558385,0.72,181.95,181.91,4.05958706]
[1754768558587,10.02200039,181.94,181.92,4.05958706]
[1754768558790,10.02200039,181.93,181.85,6.21890399]
[1754768558955,0.72,181.92,181.88,9.30200039]
[1754768559159,0.72,181.92,181.89,4.06175272]
[1754768559374,0.72,181.92,181.9,4.06175272]
[1754768559561,0.72,181.92,181.86,0.66]
[1754768559762,9.30200039,181.94,181.86,0.66]
[1754768559763,9.30200039,181.94,181.89,9.30200039]
[1754768559957,9.30200039,181.94,181.87,9.56116256]
[1754768559958,10.02200039,181.93,181.9,4.06296643]
[1754768560163,10.02200039,181.92,181.91,4.06383941]
[1754768560474,10.02200039,181.92,181.85,5.55880372]
[1754768560680,10.02200039,181.91,181.86,4.06472861]
[1754768560970,0.72,181.9,181.87,13.366729]
[1754768561146,0.72,181.9,181.88,4.06472861]
[1754768561353,0.72,181.9,181.89,4.06472861]
[1754768561671,9.30200039,181.92,181.89,4.06472861]
[1754768561982,9.30200039,181.92,181.86,9.30200039]
[1754768562169,0.72,181.9,181.87,4.06613152]
[1754768562377,0.72,181.9,181.88,4.06613152]
[1754768562580,0.72,181.9,181.89,4.06613152]
[1754768563578,10.02200039,181.9,181.89,4.06613152]
[1754768564151,15.5195265,181.9,181.85,0.06]
[1754768564375,0.72,181.89,181.86,4.07099928]
[1754768564556,0.72,181.88,181.87,4.07099928]
[1754768565359,0.72,181.88,181.85,0.06]
[1754768565572,0.72,181.87,181.86,4.07114371]
[1754768565770,41.22,181.92,181.86,4.07114371]
[1754768566077,9.30200039,181.9,181.87,4.07113991]
[1754768566266,46.71696387,181.92,181.85,0.06]
[1754768566267,9.30200039,181.88,181.85,0.06]
[1754768566468,9.30200039,181.86,181.85,0.06]
[1754768566668,35.30200039,181.86,181.85,0.06]
[1754768566964,51.12821596,181.86,181.85,0.06]
[1754768567269,68.02,181.86,181.83,0.06]
[1754768567583,9.30200039,181.84,181.83,0.06]
[1754768567780,0.72,181.85,181.83,0.06]
[1754768568079,26.72,181.86,181.83,0.06]
[1754768568261,0.72,181.84,181.83,0.06]
[1754768569075,10.02200039,181.84,181.83,0.06]
[1754768570086,0.72,181.84,181.83,0.06]
[1754768570680,9.30200039,181.85,181.83,0.06]
[1754768570993,26.0,181.86,181.83,0.06]
[1754768570994,0.72,181.84,181.83,0.06]
[1754768571501,10.02200039,181.84,181.83,0.06]
[1754768572363,0.72,181.84,181.83,0.06]
[1754768572565,35.30200039,181.86,181.83,0.06]
[1754768572769,26.72,181.86,181.83,0.06]
[1754768573068,0.72,181.85,181.83,0.06]
[1754768574699,10.02200039,181.87,181.83,0.06]
[1754768574867,0.72,181.84,181.83,0.06]
[1754768575068,10.02200039,181.84,181.83,0.06]
[1754768575979,42.24,181.84,181.83,0.06]
[1754768576178,51.54200039,181.84,181.83,0.06]
[1754768576391,57.04134046,181.84,181.83,0.06]
[1754768576596,47.73934007,181.84,181.83,0.06]
[1754768576799,53.46085953,181.84,181.83,0.06]
[1754768577875,42.24,181.84,181.83,0.06]
[1754768578071,47.96151946,181.84,181.83,0.06]
[1754768578291,47.92151946,181.84,181.83,0.06]
[1754768579069,53.42085953,181.84,181.83,0.06]
[1754768580701,68.5270751,181.84,181.83,0.06]
[1754768580900,31.72151946,181.82,181.81,0.06]
[1754768581083,40.11317269,181.85,181.81,0.06]
[1754768581282,41.4,181.82,181.81,5.78151946]
[1754768582412,41.4,181.82,181.81,0.06]
[1754768582586,42.09,181.82,181.81,0.06]
[1754768583879,26.69,181.85,181.81,0.06]
[1754768584190,41.46,181.84,181.81,5.78151946]
[1754768584781,0.69,181.83,181.81,0.06]
[1754768585917,41.46,181.84,181.81,0.06]
[1754768586115,41.46,181.84,181.81,5.78151946]
[1754768586281,0.03,181.88,181.83,5.72151946]
[1754768586487,41.4,181.87,181.86,5.72151946]
[1754768586712,41.4,181.87,181.85,5.72151946]
[1754768587119,41.4,181.87,181.84,5.72151946]
[1754768587299,42.09,181.87,181.83,5.72151946]
[1754768587516,0.69,181.86,181.83,5.72151946]
[1754768587798,41.4,181.87,181.83,6.40151946]
[1754768588000,42.09,181.87,181.83,5.72151946]
[1754768588195,41.4,181.87,181.84,5.72151946]
[1754768588707,41.4,181.87,181.84,6.40151946]
[1754768589694,41.4,181.87,181.85,5.72151946]
[1754768590209,41.4,181.87,181.85,6.40151946]
[1754768590506,0.03,181.88,181.85,6.40151946]
[1754768591308,0.03,181.88,181.86,5.72151946]
[1754768591708,0.03,181.88,181.86,0.68]
[1754768591901,0.03,181.88,181.86,6.40151946]
[1754768592306,0.03,181.88,181.86,0.68]
[1754768592620,0.72,181.88,181.84,5.4992858]
[1754768592920,0.69,181.87,181.85,4.05575306]
[1754768593123,5.75151946,181.88,181.82,5.49992263]
[1754768593124,0.69,181.86,181.82,11.22144209]
[1754768593295,0.69,181.86,181.83,4.05662651]
[1754768593495,0.69,181.86,181.84,4.05662651]
[1754768593695,0.69,181.86,181.85,4.05662651]
[1754768594096,0.03,181.88,181.85,4.05662651]
[1754768594397,0.03,181.88,181.83,5.72151946]
[1754768594398,0.69,181.87,181.83,5.72151946]
[1754768594609,0.69,181.87,181.84,4.06071344]
[1754768594899,0.69,181.87,181.85,4.06071344]
[1754768595115,0.69,181.87,181.86,4.06071344]
[1754768597531,0.03,181.88,181.86,10.4622329]
[1754768597825,0.03,181.88,181.87,4.06071344]
[1754768598513,0.72,181.88,181.87,4.06071344]
[1754768599025,0.03,181.88,181.87,10.4622329]
[1754768599399,0.03,181.88,181.87,15.96066584]
[1754768599796,0.03,181.88,181.87,10.23914638]
[1754768600016,0.03,181.88,181.87,15.97289316]
[1754768600615,0.03,181.88,181.87,19.56143991]
[1754768600821,0.03,181.88,181.87,13.38300697]
[1754768601534,0.03,181.88,181.87,4.07294076]
[1754768601712,0.03,181.88,181.87,13.38300697]
[1754768602214,0.03,181.9,181.89,26.0]
[1754768602403,0.03,181.9,181.89,54.48922254]
[1754768602602,0.03,181.9,181.89,55.16922254]
[1754768602823,0.03,181.9,181.89,40.06300697]
[1754768603903,0.03,181.9,181.89,45.56083532]
[1754768605024,0.03,181.9,181.89,41.48789456]
[1754768605203,0.03,181.9,181.89,60.6719108]
[1754768606405,0.03,181.9,181.89,92.92184459]
[1754768606611,0.03,181.9,181.89,102.2319108]
[1754768607529,0.03,181.9,181.89,86.44569523]
[1754768608810,0.03,181.9,181.89,102.2319108]
[1754768609422,0.03,181.9,181.89,101.5519108]
[1754768609819,0.03,181.9,181.89,102.2119108]
[1754768614928,0.03,181.9,181.89,92.90184459]
[1754768615124,0.03,181.9,181.89,86.44569523]
[1754768615534,0.03,181.9,181.89,87.10569523]
[1754768616137,0.03,181.9,181.89,102.2119108]
[1754768617313,0.03,181.9,181.89,191.8119108]
[1754768617554,0.03,181.9,181.89,191.1519108]
[1754768617741,0.03,181.9,181.89,125.17562902]
[1754768617922,0.03,181.9,181.89,175.82569523]
[1754768618341,0.03,181.9,181.89,166.51562902]
[1754768618544,0.03,181.9,181.89,175.82569523]
[1754768620131,0.03,181.9,181.89,171.74789456]
[1754768620448,0.03,181.9,181.89,175.81050696]
[1754768620823,0.03,181.9,181.89,166.50044075]
[1754768621025,0.03,181.9,181.89,175.81050696]
[1754768621333,0.74,181.9,181.89,4.0626124]
[1754768621733,0.74,181.9,181.89,18.87050696]
[1754768622045,0.03,181.9,181.89,18.87050696]
[1754768622457,0.74,181.9,181.89,4.0626124]
[1754768623357,0.03,181.9,181.89,4.0626124]
[1754768623564,0.03,181.9,181.89,9.56044075]
[1754768623863,0.74,181.9,181.89,4.0626124]
[1754768624638,0.03,181.9,181.89,15.27470005]
[1754768627441,0.03,181.9,181.89,9.56044075]
[1754768627637,0.03,181.9,181.89,15.93470005]
[1754768627837,0.03,181.9,181.89,9.56758438]
[1754768628039,0.74,181.9,181.89,15.28184368]
[1754768628240,0.03,181.9,181.89,9.56758438]
[1754768628436,0.03,181.9,181.89,15.28184368]
[1754768629633,0.03,181.9,181.89,15.94184368]
[1754768630243,0.03,181.9,181.89,15.28184368]
[1754768630753,0.03,181.9,181.89,9.56758438]
[1754768630946,0.03,181.9,181.89,15.28184368]
[1754768631526,0.03,181.9,181.89,77.96231855]
[1754768636050,0.00015283,181.9,181.89,77.96231855]
[1754768636649,0.03,181.92,181.91,41.10621557]
[1754768636962,0.03,181.94,181.93,5.7142593]
[1754768637141,0.03,181.94,181.93,50.84401533]
[1754768637662,0.03,181.94,181.93,72.10685047]
[1754768637849,0.03,181.94,181.93,71.45484111]
[1754768638652,0.03,181.94,181.93,74.23339112]
[1754768639444,1e-08,181.94,181.93,74.78305307]
[1754768639760,1e-08,181.94,181.93,74.89339112]
[1754768640348,1e-08,181.94,181.93,70.15564445]
[1754768640554,1e-08,181.94,181.93,74.2135687]
[1754768640757,1e-08,181.94,181.93,74.1535687]
[1754768641064,0.68000001,181.94,181.93,74.1535687]
[1754768641468,0.68000001,181.94,181.93,18.04735313]
[1754768641638,0.68000001,181.94,181.93,4.05792425]
[1754768642154,0.68000001,181.94,181.93,4.06016717]
[1754768643068,6.39425931,181.94,181.93,4.06016717]
[1754768643970,0.68000001,181.94,181.93,4.06016717]
[1754768644345,0.68000001,181.94,181.9,11.21169284]
[1754768644780,0.68000001,181.94,181.89,52.19205057]
[1754768645770,5.7142593,181.93,181.9,4.06707982]
[1754768646071,0.68,181.92,181.88,5.55811163]
[1754768646270,0.68,181.92,181.88,11.27237093]
[1754768646445,0.68,181.92,181.89,5.7142593]
[1754768646650,5.71425931,181.94,181.89,5.7142593]
[1754768646651,1e-08,181.94,181.89,5.7142593]
[1754768646855,0.68,181.93,181.91,5.7142593]
[1754768647058,1e-08,181.94,181.92,5.7142593]
[1754768647277,1e-08,181.94,181.89,41.58]
[1754768647458,1e-08,181.94,181.93,5.7142593]
[1754768647658,0.68000001,181.94,181.9,5.49752611]
[1754768647862,0.68000001,181.94,181.93,5.7142593]
[1754768648173,0.68000001,181.94,181.9,5.49752611]
[1754768648367,1e-08,181.94,181.92,5.7142593]
[1754768648673,1e-08,181.94,181.93,9.78248621]
[1754768649272,1e-08,181.94,181.93,9.78252981]
[1754768649446,0.68000001,181.94,181.93,5.7142593]
[1754768649951,1e-08,181.94,181.93,11.21087887]
[1754768650555,1e-08,181.94,181.93,5.49661957]
[1754768650757,0.68000001,181.94,181.93,4.06812325]
[1754768651772,1e-08,181.94,181.93,4.06812325]
[1754768652481,0.68000001,181.94,181.93,4.06812325]
[1754768652866,0.68000001,181.94,181.93,4.06833298]
[1754768655571,0.68000001,181.94,181.93,4.06861032]
[1754768657260,0.68000001,181.94,181.93,4.12861032]
[1754768658399,1e-08,181.94,181.93,4.12861032]
[1754768658591,0.68000001,181.94,181.93,4.12861032]
[1754768660688,1e-08,181.94,181.93,4.12850839]
[1754768661887,0.68000001,181.94,181.93,4.12850839]
[1754768662970,0.68000001,181.94,181.93,0.06]
[1754768663176,0.68000001,181.94,181.93,4.12891302]
[1754768664189,6.39425931,181.94,181.93,4.12891302]
[1754768664370,11.89057677,181.94,181.93,4.12891302]
[1754768664977,0.68000001,181.94,181.93,4.12891302]
[1754768665286,6.39425931,181.94,181.93,4.12891302]
[1754768665483,11.89057677,181.94,181.93,4.12891302]
[1754768668204,0.68000001,181.94,181.93,4.12891302]
[1754768668404,6.39425931,181.94,181.93,4.12891302]
[1754768669408,11.89057677,181.94,181.93,4.12891302]
[1754768672985,26.99679234,181.94,181.93,4.12891302]
[1754768675293,21.28253304,181.94,181.93,4.12891302]
[1754768675602,26.99679234,181.94,181.93,4.12891302]
[1754768675783,26.99679234,181.94,181.93,4.1481616]
[1754768677182,11.89057677,181.94,181.93,4.1481616]
[1754768677592,11.89057677,181.94,181.93,4.14680583]
[1754768678507,6.17631747,181.94,181.93,4.14680583]
[1754768678707,11.89057677,181.94,181.93,4.14680583]
[1754768680209,11.89057677,181.94,181.93,0.06]
[1754768681488,11.89057677,181.94,181.93,4.14538027]
[1754768681687,11.89057677,181.94,181.93,0.06]
[1754768681900,11.89057677,181.94,181.93,4.14546188]
[1754768682105,11.89057677,181.94,181.93,0.06]
[1754768682709,6.17631747,181.94,181.93,0.06]
[1754768683095,11.89057677,181.94,181.93,4.14704932]
[1754768683304,6.17631747,181.94,181.93,4.14704932]
[1754768683623,11.89057677,181.94,181.93,4.14704932]
[1754768684914,11.21057677,181.94,181.93,4.14704932]
[1754768686034,11.21057677,181.94,181.93,4.14789453]
[1754768686611,5.71425931,181.94,181.93,4.14789453]
[1754768687618,1e-08,181.94,181.93,10.55215383]
[1754768688733,1e-08,181.94,181.93,16.0487734]
[1754768690107,1e-08,181.94,181.93,10.55215383]
[1754768691118,1e-08,181.94,181.93,16.0487734]
[1754768700208,0.03,181.96,181.93,16.0487734]
[1754768700522,0.03,181.96,181.95,5.7142593]
[1754768700723,0.03,181.96,181.95,4.08789453]
[1754768700924,0.03,181.96,181.95,10.49215383]
[1754768702215,0.03,181.96,181.95,15.98816921]
[1754768702749,0.03,181.98,181.96,15.10621557]
[1754768702921,0.03,181.98,181.95,32.25203004]
[1754768702922,0.03,182.0,181.99,46.82047487]
[1754768703122,0.03,182.0,181.99,50.9083694]
[1754768703454,0.03,182.0,181.99,51.5983694]
[1754768703936,0.03,182.0,181.99,58.25393956]
[1754768704150,0.03,182.0,181.99,63.74874696]
[1754768704738,0.03,182.05,181.99,78.03524621]
[1754768704935,0.03,182.05,182.04,5.7142593]
[1754768705112,0.03,182.05,182.04,9.80215383]
[1754768706020,0.69,182.05,182.04,9.80215383]
[1754768706220,0.69,182.05,182.04,15.295452]
[1754768706420,0.03,182.05,182.04,15.295452]
[1754768707022,0.03,182.05,182.04,9.80215383]
[1754768708622,0.03,182.05,182.04,15.295452]
[1754768709840,0.03,182.05,182.04,9.80215383]
[1754768710240,0.03,182.05,182.04,9.77124533]
[1754768710443,0.03,182.05,182.04,15.2645435]
[1754768710628,0.03,182.05,182.04,15.9545435]
[1754768711118,0.03,182.05,182.04,4.05698603]
[1754768711553,0.03,182.05,182.04,9.77124533]
[1754768711866,0.69,182.05,182.04,9.77124533]
[1754768712456,0.03,182.05,182.04,15.2645435]
[1754768713025,0.03,182.05,182.04,9.5502842]
[1754768713253,0.03,182.05,182.04,15.2645435]
[1754768715047,0.03,182.05,182.04,15.9545435]
[1754768715239,0.03,182.05,182.04,1.7055435]
[1754768715958,0.03,182.05,182.04,16.81175907]
[1754768716337,0.76,182.13,182.05,15.10621557]
[1754768716530,0.76,182.13,182.07,20.82047487]
[1754768716777,0.76,182.13,182.1,5.7142593]
[1754768717063,0.76,182.13,182.12,5.7142593]
[1754768717257,0.76,182.13,182.08,40.61]
[1754768717562,0.66,182.12,182.11,5.7142593]
[1754768718148,0.66,182.12,182.09,5.49178977]
[1754768718342,0.1,182.13,182.11,5.7142593]
[1754768718665,0.1,182.13,182.12,5.7142593]
[1754768718862,0.1,182.13,182.09,5.49178977]
[1754768719064,0.1,182.13,182.12,5.7142593]
[1754768719240,0.1,182.13,182.09,5.49178977]
[1754768719443,0.66,182.12,182.09,5.49178977]
[1754768719665,0.66,182.12,182.11,5.7142593]
[1754768720066,0.66,182.12,182.06,0.69]
[1754768720275,0.66,182.12,182.08,40.0]
[1754768720645,0.66,182.12,182.09,5.7142593]
[1754768720963,0.66,182.12,182.05,45.49274816]
[1754768721172,6.3742593,182.12,182.05,45.49274816]
[1754768721369,0.66,182.11,182.09,5.7142593]
[1754768721665,0.1,182.13,182.1,5.7142593]
[1754768721836,0.1,182.13,182.12,11.20514443]
[1754768722271,0.1,182.13,182.12,11.89514443]
[1754768722482,0.1,182.13,182.12,27.00136]
[1754768723141,0.1,182.13,182.12,26.31136]
[1754768723674,0.1,182.13,182.12,27.00136]
[1754768724540,0.66,182.2,182.15,26.0]
[1754768724845,0.66,182.22,182.19,5.7142593]
[1754768725037,0.66,182.21,182.2,5.7142593]
[1754768725435,0.66,182.21,182.16,40.75]
[1754768725666,0.66,182.2,182.16,40.75]
[1754768725846,0.66,182.2,182.17,5.7142593]
[1754768726250,5.48727472,182.24,182.19,5.7142593]
[1754768726451,0.66,182.23,182.2,5.7142593]
[1754768726944,16.6792491,182.32,182.18,40.12]
[1754768727150,16.6792491,182.32,182.21,0.69]
[1754768727151,0.66,182.26,182.21,0.69]
[1754768727360,0.66,182.25,182.21,41.19]
[1754768727554,0.66,182.25,182.21,40.5]
[1754768727866,0.66,182.24,182.23,5.7142593]
[1754768728368,0.66,182.24,182.21,40.5]
[1754768728543,6.3742593,182.23,182.17,16.475822]
[1754768728748,0.66,182.22,182.17,5.7142593]
[1754768728944,26.03,182.27,182.21,5.7142593]
[1754768729145,31.51639435,182.27,182.23,5.7142593]
[1754768729374,6.4342593,182.26,182.19,40.74]
[1754768729545,5.7142593,182.22,182.16,16.478537]
[1754768729746,5.7142593,182.19,182.12,0.69]
[1754768729950,6.4342593,182.18,182.13,3.94571861]
[1754768730148,0.72,182.17,182.13,3.94571861]
[1754768730368,5.4888874,182.19,182.13,3.94571861]
[1754768730369,0.72,182.19,182.16,5.7142593]
[1754768730582,26.0,182.22,182.16,5.7142593]
[1754768730583,0.72,182.26,182.18,5.7142593]
[1754768730875,0.72,182.26,182.19,0.69]
[1754768731064,0.72,182.26,182.18,15.10621557]
[1754768731260,0.72,182.26,182.22,5.7142593]
[1754768731458,0.72,182.26,182.23,5.7142593]
[1754768731975,0.72,182.25,182.22,5.7142593]
[1754768732147,0.72,182.25,182.18,15.10621557]
[1754768732464,0.72,182.25,182.2,5.7142593]
[1754768732660,5.7142593,182.24,182.17,40.9]
[1754768732859,0.72,182.23,182.2,5.7142593]
[1754768733268,0.72,182.22,182.2,5.7142593]
[1754768733472,0.72,182.22,182.19,5.7142593]
[1754768733855,0.72,182.21,182.17,41.59]
[1754768734053,0.72,182.21,182.19,5.7142593]
[1754768734255,0.72,182.21,182.17,40.9]
[1754768734570,0.72,182.21,182.19,5.7142593]
[1754768734749,5.48772755,182.23,182.19,5.7142593]
[1754768734750,11.9215637,182.24,182.19,5.7142593]
[1754768734949,0.72,182.23,182.19,5.7142593]
[1754768735145,0.72,182.22,182.17,40.9]
[1754768735443,0.72,182.21,182.18,3.91129848]
[1754768735643,6.4342593,182.2,182.15,19.4293393]
[1754768735868,5.7142593,182.18,182.16,3.91230385]
[1754768736071,0.72,182.18,182.15,13.71508]
[1754768736247,6.4342593,182.2,182.15,19.4293393]
[1754768736451,0.72,182.2,182.16,9.62891161]
[1754768736650,0.72,182.19,182.16,5.7142593]
[1754768736952,0.72,182.19,182.15,5.7142593]
[1754768737261,0.72,182.19,182.16,3.91427921]
[1754768737966,0.72,182.18,182.13,5.7142593]
[1754768738166,6.4342593,182.18,182.14,3.91642338]
[1754768738369,0.72,182.17,182.15,3.91642338]
[1754768738674,0.72,182.17,182.16,3.91642338]
[1754768738851,6.4342593,182.17,182.11,31.7142593]
[1754768739054,5.48886782,182.19,182.11,31.7142593]
[1754768739055,6.4342593,182.16,182.12,3.91852164]
[1754768739360,0.72,182.16,182.13,3.91852164]
[1754768739564,0.72,182.15,182.14,3.91852164]
[1754768739758,0.72,182.15,182.11,31.7142593]
[1754768739759,0.72,182.15,182.12,3.91852164]
[1754768739953,5.7142593,182.15,182.13,3.91852164]
[1754768740156,0.72,182.14,182.1,5.7142593]
[1754768740360,6.4342593,182.19,182.13,5.7142593]
[1754768740573,0.72,182.19,182.14,3.92150004]
[1754768740764,0.72,182.19,182.15,9.63575934]
[1754768740960,0.72,182.19,182.15,5.7142593]
[1754768741158,0.72,182.18,182.15,5.7142593]
[1754768742273,0.72,182.18,182.16,3.92781289]
[1754768742470,32.20853414,182.2,182.16,3.92781289]
[1754768742677,0.72,182.19,182.16,3.92781289]
[1754768742869,0.72,182.19,182.15,5.7142593]
[1754768743262,0.72,182.18,182.16,3.93043669]
[1754768743467,0.72,182.18,182.14,5.7142593]
[1754768743787,0.72,182.18,182.15,3.93237985]
[1754768743954,0.72,182.18,182.16,3.93237985]
[1754768744156,6.20913211,182.18,182.14,5.7142593]
[1754768744355,0.72,182.18,182.15,3.9328627]
[1754768744562,0.72,182.18,182.16,3.9328627]
[1754768744776,0.72,182.18,182.14,5.7142593]
[1754768745081,0.72,182.18,182.15,3.93541127]
[1754768745262,6.20911536,182.18,182.16,3.93541127]
[1754768745467,0.72,182.17,182.13,5.7142593]
[1754768745660,0.72,182.17,182.14,3.93561159]
[1754768745865,0.72,182.17,182.15,3.93561159]
[1754768746080,0.72,182.17,182.16,3.93561159]
[1754768746796,5.7142593,182.18,182.16,3.93561159]
[1754768746959,6.4342593,182.18,182.14,5.7142593]
[1754768747161,0.72,182.18,182.15,3.937428]
[1754768747357,5.48915943,182.18,182.16,3.937428]
[1754768747587,0.72,182.17,182.12,5.7142593]
[1754768747878,5.7142593,182.17,182.13,3.94009049]
[1754768748083,0.72,182.17,182.14,3.94009049]
[1754768748377,0.03,182.2,182.16,5.7142593]
[1754768748582,0.03,182.2,182.17,9.65421405]
[1754768748791,0.03,182.2,182.17,5.7142593]
[1754768749687,0.03,182.2,182.16,0.69]
[1754768749911,0.03,182.2,182.17,9.65467648]
[1754768750067,0.03,182.2,182.16,0.69]
[1754768750382,0.03,182.2,182.17,9.65467774]
[1754768750681,5.01821474,182.21,182.17,5.7142593]
[1754768751162,5.73821474,182.21,182.17,5.7142593]
[1754768752180,11.45247404,182.21,182.16,0.69]
[1754768752400,0.72,182.2,182.17,3.94185437]
[1754768752716,0.72,182.2,182.18,3.94247839]
[1754768752896,5.01821474,182.21,182.16,6.4042593]
[1754768753062,6.23792923,182.22,182.18,0.69]
[1754768753370,0.03,182.22,182.19,10.34710652]
[1754768753567,0.03,182.22,182.21,5.7142593]
[1754768753765,0.03,182.22,182.21,9.65710652]
[1754768753972,0.03,182.22,182.21,10.34710652]
[1754768755262,0.03,182.22,182.21,3.94284722]
[1754768755468,0.03,182.22,182.21,3.94228294]
[1754768755688,0.03,182.22,182.21,3.94265262]
[1754768755868,0.03,182.22,182.21,3.94303274]
[1754768756069,0.03,182.22,182.2,5.7142593]
[1754768756388,0.03,182.22,182.21,3.94333784]
[1754768756613,0.03,182.22,182.21,9.65759714]
[1754768757112,0.03,182.22,182.21,10.34759714]
[1754768757312,0.03,182.22,182.21,9.65759714]
[1754768758086,0.03,182.22,182.21,3.94333784]